[Event "January 9 Early 2024"]
[Site "https://www.chess.com"]
[Date "2024.01.11"]
[Round "1"]
[White "Guevara Sanchez, Erick Marvin"]
[Black "Sielecki, Christof"]
[Result "0-1"]
[Board "160"]
[TimeControl "180+1"]
[WhiteFideId "6700136"]
[BlackFideId "4620437"]
[WhiteElo "2210"]
[BlackElo "2589"]
[WhiteTeam "ESA"]
[BlackTeam "GER"]
[WhiteClock "0:00:02"]
[BlackClock "0:00:19"]

1. e4 {[%clk 0:03:00]}  c5 {[%clk 0:02:59]} 2. d4 {[%clk 0:03:00]}  cxd4 {[%clk 0:02:58]} 3. c3 {[%clk 0:03:01]}  dxc3 {[%clk 0:02:56]} 4. Nxc3 {[%clk 0:03:02]}  e6 {[%clk 0:02:55]} 5. Nf3 {[%clk 0:03:01]}  a6 {[%clk 0:02:56]} 6. Bc4 {[%clk 0:03:00]}  b5 {[%clk 0:02:56]} 7. Bb3 {[%clk 0:03:00]}  Nc6 {[%clk 0:02:57]} 8. O-O {[%clk 0:02:59]}  Na5 {[%clk 0:02:56]} 9. Bc2 {[%clk 0:02:56]}  Bb7 {[%clk 0:02:56]} 10. Re1 {[%clk 0:02:54]}  Rc8 {[%clk 0:02:54]} 11. Bf4 {[%clk 0:02:52]}  Bc5 {[%clk 0:02:52]} 12. Bd6 {[%clk 0:02:01]}  Bxd6 {[%clk 0:02:47]} 13. Qxd6 {[%clk 0:02:02]}  Nf6 {[%clk 0:02:39]} 14. e5 {[%clk 0:01:59]}  Nc4 {[%clk 0:02:33]} 15. Qd4 {[%clk 0:01:44]}  Nd5 {[%clk 0:02:17]} 16. Qg4 {[%clk 0:01:37]}  Nxb2 {[%clk 0:02:08]} 17. Qxg7 {[%clk 0:01:37]}  Rf8 {[%clk 0:02:04]} 18. Ne4 {[%clk 0:01:36]}  Nc4 {[%clk 0:01:17]} 19. Bb3 {[%clk 0:01:29]}  Rc6 {[%clk 0:00:58]} 20. Bxc4 {[%clk 0:01:23]}  bxc4 {[%clk 0:00:59]} 21. Rad1 {[%clk 0:01:08]}  Qe7 {[%clk 0:00:49]} 22. Nd4 {[%clk 0:00:31]}  Nf4 {[%clk 0:00:37]} 23. Nxc6 {[%clk 0:00:19]}  Bxc6 {[%clk 0:00:38]} 24. Nf6+ {[%clk 0:00:11]}  Kd8 {[%clk 0:00:38]} 25. f3 {[%clk 0:00:09]}  c3 {[%clk 0:00:33]} 26. Kh1 {[%clk 0:00:07]}  c2 {[%clk 0:00:30]} 27. Rc1 {[%clk 0:00:07]}  Nd3 {[%clk 0:00:31]} 28. Rxc2 {[%clk 0:00:05]}  Nxe1 {[%clk 0:00:30]} 29. Rd2 {[%clk 0:00:05]}  Qb4 {[%clk 0:00:26]} 30. Qg5 {[%clk 0:00:05]}  Kc7 {[%clk 0:00:22]} 31. Qg3 {[%clk 0:00:02]}  Qb1 {[%clk 0:00:19]} 0-1

[Event "January 9 Early 2024"]
[Site "https://www.chess.com"]
[Date "2024.01.11"]
[Round "1"]
[White "Grigorov, Grigor"]
[Black "Molenda, Marcin"]
[Result "0-1"]
[Board "163"]
[TimeControl "180+1"]
[WhiteFideId "2907313"]
[BlackFideId "1173065"]
[WhiteElo "2873"]
[BlackElo "2493"]
[WhiteTeam "BUL"]
[BlackTeam "POL"]
[WhiteClock "0:00:06"]
[BlackClock "0:00:30"]

1. Nf3 {[%clk 0:03:00]}  g6 {[%clk 0:02:58]} 2. d4 {[%clk 0:02:59]}  Bg7 {[%clk 0:02:59]} 3. e4 {[%clk 0:02:59]}  d6 {[%clk 0:02:58]} 4. Bd3 {[%clk 0:02:59]}  Nf6 {[%clk 0:02:58]} 5. O-O {[%clk 0:02:59]}  O-O {[%clk 0:02:58]} 6. c3 {[%clk 0:02:59]}  Bg4 {[%clk 0:02:56]} 7. Nbd2 {[%clk 0:02:57]}  c5 {[%clk 0:02:56]} 8. h3 {[%clk 0:02:54]}  Bd7 {[%clk 0:02:50]} 9. dxc5 {[%clk 0:02:43]}  dxc5 {[%clk 0:02:51]} 10. Qc2 {[%clk 0:02:41]}  Nc6 {[%clk 0:02:45]} 11. e5 {[%clk 0:02:32]}  Nh5 {[%clk 0:02:42]} 12. Re1 {[%clk 0:02:32]}  Nf4 {[%clk 0:02:42]} 13. Nc4 {[%clk 0:02:17]}  Nxd3 {[%clk 0:02:34]} 14. Qxd3 {[%clk 0:02:18]}  Bf5 {[%clk 0:02:28]} 15. Qe3 {[%clk 0:02:16]}  b5 {[%clk 0:02:28]} 16. Ncd2 {[%clk 0:02:01]}  c4 {[%clk 0:02:23]} 17. a4 {[%clk 0:01:52]}  a6 {[%clk 0:02:20]} 18. axb5 {[%clk 0:01:38]}  axb5 {[%clk 0:02:21]} 19. Rxa8 {[%clk 0:01:38]}  Qxa8 {[%clk 0:02:21]} 20. Nf1 {[%clk 0:01:39]}  Qa7 {[%clk 0:02:00]} 21. Qf4 {[%clk 0:01:33]}  Rd8 {[%clk 0:01:56]} 22. Ng3 {[%clk 0:01:33]}  Be6 {[%clk 0:01:53]} 23. Qh4 {[%clk 0:01:19]}  Nxe5 {[%clk 0:01:45]} 24. Ng5 {[%clk 0:01:01]}  Nd3 {[%clk 0:01:34]} 25. Qxh7+ {[%clk 0:00:58]}  Kf8 {[%clk 0:01:34]} 26. Nxe6+ {[%clk 0:00:58]}  fxe6 {[%clk 0:01:35]} 27. Be3 {[%clk 0:00:53]}  Qb7 {[%clk 0:00:52]} 28. Ra1 {[%clk 0:00:46]}  Kf7 {[%clk 0:00:50]} 29. Ra7 {[%clk 0:00:35]}  Qxa7 {[%clk 0:00:48]} 30. Bxa7 {[%clk 0:00:27]}  Rh8 {[%clk 0:00:48]} 31. Qxh8 {[%clk 0:00:20]}  Bxh8 {[%clk 0:00:49]} 32. Ne4 {[%clk 0:00:20]}  Nxb2 {[%clk 0:00:48]} 33. Ng5+ {[%clk 0:00:17]}  Kg8 {[%clk 0:00:45]} 34. Ne4 {[%clk 0:00:17]}  Na4 {[%clk 0:00:39]} 35. Be3 {[%clk 0:00:06]}  Nxc3 {[%clk 0:00:35]} 36. Nc5 {[%clk 0:00:06]}  Nd5 {[%clk 0:00:31]} 37. Bc1 {[%clk 0:00:06]}  b4 {[%clk 0:00:30]} 0-1

[Event "January 9 Early 2024"]
[Site "https://www.chess.com"]
[Date "2024.01.11"]
[Round "1"]
[White "Gubajdullin, Alexei"]
[Black "Kaganskiy, Gleb"]
[Result "1-0"]
[Board "165"]
[TimeControl "180+1"]
[WhiteFideId "4141202"]
[BlackFideId "4132025"]
[WhiteElo "2615"]
[BlackElo "2260"]
[WhiteTeam "RUS"]
[BlackTeam "ISR"]
[WhiteClock "0:01:08"]
[BlackClock "0:00:05"]

1. e4 {[%clk 0:03:00]}  Nc6 {[%clk 0:02:58]} 2. d4 {[%clk 0:03:00]}  d5 {[%clk 0:02:59]} 3. exd5 {[%clk 0:02:56]}  Qxd5 {[%clk 0:02:59]} 4. c3 {[%clk 0:02:54]}  e5 {[%clk 0:02:58]} 5. Be3 {[%clk 0:02:53]}  exd4 {[%clk 0:02:55]} 6. cxd4 {[%clk 0:02:53]}  Qa5+ {[%clk 0:02:52]} 7. Nc3 {[%clk 0:02:52]}  Bb4 {[%clk 0:02:51]} 8. Qb3 {[%clk 0:02:51]}  Be6 {[%clk 0:02:46]} 9. Bc4 {[%clk 0:02:50]}  Bxc4 {[%clk 0:02:43]} 10. Qxc4 {[%clk 0:02:50]}  O-O-O {[%clk 0:02:40]} 11. Ne2 {[%clk 0:02:49]}  Qd5 {[%clk 0:02:17]} 12. Qxd5 {[%clk 0:02:44]}  Rxd5 {[%clk 0:02:18]} 13. O-O {[%clk 0:02:43]}  Rd7 {[%clk 0:02:10]} 14. d5 {[%clk 0:02:41]}  Ne5 {[%clk 0:02:07]} 15. Bd4 {[%clk 0:02:41]}  f6 {[%clk 0:01:57]} 16. a3 {[%clk 0:02:26]}  Bxc3 {[%clk 0:01:47]} 17. Bxc3 {[%clk 0:02:14]}  Rxd5 {[%clk 0:01:43]} 18. Nf4 {[%clk 0:02:14]}  Rd7 {[%clk 0:01:37]} 19. Rfe1 {[%clk 0:02:14]}  Ne7 {[%clk 0:01:21]} 20. Bxe5 {[%clk 0:02:12]}  fxe5 {[%clk 0:01:22]} 21. Rxe5 {[%clk 0:02:12]}  Nc6 {[%clk 0:01:18]} 22. Re2 {[%clk 0:02:12]}  Rhd8 {[%clk 0:01:16]} 23. h4 {[%clk 0:02:11]}  Rd2 {[%clk 0:01:15]} 24. Rae1 {[%clk 0:02:10]}  a5 {[%clk 0:01:09]} 25. h5 {[%clk 0:02:08]}  a4 {[%clk 0:01:09]} 26. Ne6 {[%clk 0:02:05]}  R8d7 {[%clk 0:01:01]} 27. Rxd2 {[%clk 0:01:56]}  Rxd2 {[%clk 0:00:59]} 28. Nxg7 {[%clk 0:01:57]}  Rxb2 {[%clk 0:00:58]} 29. Re8+ {[%clk 0:01:58]}  Kd7 {[%clk 0:00:56]} 30. Rh8 {[%clk 0:01:59]}  Rb3 {[%clk 0:00:52]} 31. Rxh7 {[%clk 0:01:58]}  Rxa3 {[%clk 0:00:53]} 32. h6 {[%clk 0:01:58]}  Rb3 {[%clk 0:00:46]} 33. Nf5+ {[%clk 0:01:45]}  Ke6 {[%clk 0:00:43]} 34. Rh8 {[%clk 0:01:40]}  Ne5 {[%clk 0:00:33]} 35. h7 {[%clk 0:01:31]}  Ng6 {[%clk 0:00:26]} 36. Rg8 {[%clk 0:01:30]}  Kxf5 {[%clk 0:00:14]} 37. Rxg6 {[%clk 0:01:21]}  Kxg6 {[%clk 0:00:15]} 38. h8=Q {[%clk 0:01:21]}  b5 {[%clk 0:00:15]} 39. g4 {[%clk 0:01:18]}  b4 {[%clk 0:00:09]} 40. Kg2 {[%clk 0:01:18]}  c5 {[%clk 0:00:07]} 41. Qh5+ {[%clk 0:01:13]}  Kg7 {[%clk 0:00:05]} 42. Qg5+ {[%clk 0:01:13]}  Kh7 {[%clk 0:00:04]} 43. Qf6 {[%clk 0:01:10]}  Rc3 {[%clk 0:00:04]} 44. g5 {[%clk 0:01:10]}  a3 {[%clk 0:00:04]} 45. Qf7+ {[%clk 0:01:09]}  Kh8 {[%clk 0:00:04]} 46. g6 {[%clk 0:01:09]}  Rg3+ {[%clk 0:00:04]} 47. Kxg3 {[%clk 0:01:08]}  a2 {[%clk 0:00:05]} 48. Qh7# {[%clk 0:01:08]} 1-0

[Event "January 9 Early 2024"]
[Site "https://www.chess.com"]
[Date "2024.01.11"]
[Round "1"]
[White "Srdanovic, Jovana"]
[Black "Viana, Valeria"]
[Result "1-0"]
[Board "166"]
[TimeControl "180+1"]
[WhiteFideId "954810"]
[BlackFideId "8407100"]
[WhiteElo "2552"]
[BlackElo "2083"]
[WhiteTeam "SRB"]
[BlackTeam "HON"]
[WhiteClock "0:01:02"]
[BlackClock "0:00:09"]

1. d4 {[%clk 0:02:59]}  Nf6 {[%clk 0:02:57]} 2. c4 {[%clk 0:02:54]}  e6 {[%clk 0:02:56]} 3. Nf3 {[%clk 0:02:53]}  d5 {[%clk 0:02:56]} 4. Nc3 {[%clk 0:02:53]}  Bb4 {[%clk 0:02:54]} 5. Bg5 {[%clk 0:02:50]}  dxc4 {[%clk 0:02:47]} 6. Qa4+ {[%clk 0:02:42]}  Nc6 {[%clk 0:02:46]} 7. e3 {[%clk 0:02:39]}  Bd7 {[%clk 0:02:43]} 8. Qc2 {[%clk 0:02:34]}  b5 {[%clk 0:02:41]} 9. Be2 {[%clk 0:02:34]}  O-O {[%clk 0:02:37]} 10. O-O {[%clk 0:02:32]}  a6 {[%clk 0:02:28]} 11. Ne5 {[%clk 0:02:27]}  h6 {[%clk 0:02:22]} 12. Bxf6 {[%clk 0:02:25]}  gxf6 {[%clk 0:02:03]} 13. Nxd7 {[%clk 0:02:25]}  Qxd7 {[%clk 0:02:02]} 14. Qe4 {[%clk 0:02:26]}  Ne7 {[%clk 0:01:58]} 15. Qh4 {[%clk 0:02:21]}  Bxc3 {[%clk 0:01:44]} 16. bxc3 {[%clk 0:02:20]}  Kg7 {[%clk 0:01:43]} 17. e4 {[%clk 0:02:10]}  Ng6 {[%clk 0:01:40]} 18. Qg3 {[%clk 0:02:08]}  Qd6 {[%clk 0:01:37]} 19. f4 {[%clk 0:02:07]}  f5 {[%clk 0:01:31]} 20. exf5 {[%clk 0:02:02]}  exf5 {[%clk 0:01:31]} 21. h4 {[%clk 0:01:59]}  Qe7 {[%clk 0:01:12]} 22. Bf3 {[%clk 0:01:44]}  Rae8 {[%clk 0:01:05]} 23. h5 {[%clk 0:01:33]}  Qh4 {[%clk 0:01:01]} 24. Qxh4 {[%clk 0:01:33]}  Nxh4 {[%clk 0:01:01]} 25. Bc6 {[%clk 0:01:32]}  Re3 {[%clk 0:00:58]} 26. Rac1 {[%clk 0:01:25]}  Rd8 {[%clk 0:00:40]} 27. Rc2 {[%clk 0:01:22]}  Rd6 {[%clk 0:00:38]} 28. Bb7 {[%clk 0:01:21]}  a5 {[%clk 0:00:26]} 29. Kf2 {[%clk 0:01:19]}  Rd3 {[%clk 0:00:20]} 30. g3 {[%clk 0:01:18]}  Nf3 {[%clk 0:00:18]} 31. Bxf3 {[%clk 0:01:17]}  Re6 {[%clk 0:00:17]} 32. d5 {[%clk 0:01:05]}  Ree3 {[%clk 0:00:17]} 33. Be2 {[%clk 0:01:04]}  Rxc3 {[%clk 0:00:14]} 34. Rxc3 {[%clk 0:01:04]}  Rxc3 {[%clk 0:00:14]} 35. Rb1 {[%clk 0:01:04]}  b4 {[%clk 0:00:13]} 36. Rb2 {[%clk 0:01:03]}  Ra3 {[%clk 0:00:12]} 37. Bxc4 {[%clk 0:01:02]}  Rc3 {[%clk 0:00:11]} 38. Bb3 {[%clk 0:00:59]}  Kf6 {[%clk 0:00:11]} 39. Rc2 {[%clk 0:00:59]}  Rxc2+ {[%clk 0:00:09]} 40. Bxc2 {[%clk 0:01:00]}  Ke7 {[%clk 0:00:10]} 41. Ke3 {[%clk 0:01:01]}  Kd6 {[%clk 0:00:10]} 42. Kd4 {[%clk 0:01:01]}  f6 {[%clk 0:00:09]} 43. Bxf5 {[%clk 0:01:01]}  c5+ {[%clk 0:00:08]} 44. dxc6 {[%clk 0:01:01]}  Kxc6 {[%clk 0:00:08]} 45. Bc2 {[%clk 0:01:02]}  Kd6 {[%clk 0:00:09]} 46. g4 {[%clk 0:01:02]} 1-0

[Event "January 9 Early 2024"]
[Site "https://www.chess.com"]
[Date "2024.01.11"]
[Round "1"]
[White "Martinez Pla, Xavier"]
[Black "Bachmann, Axel"]
[Result "0-1"]
[Board "169"]
[TimeControl "180+1"]
[WhiteFideId "32074271"]
[BlackFideId "3700488"]
[WhiteElo "2479"]
[BlackElo "2896"]
[WhiteTeam "ESP"]
[BlackTeam "PAR"]
[WhiteClock "0:00:09"]
[BlackClock "0:00:36"]

1. e4 {[%clk 0:03:00]}  Nf6 {[%clk 0:02:56]} 2. e5 {[%clk 0:03:00]}  Nd5 {[%clk 0:02:50]} 3. d4 {[%clk 0:03:00]}  d6 {[%clk 0:02:45]} 4. Nf3 {[%clk 0:03:01]}  Bf5 {[%clk 0:02:44]} 5. Bd3 {[%clk 0:02:56]}  Bxd3 {[%clk 0:02:43]} 6. Qxd3 {[%clk 0:02:57]}  e6 {[%clk 0:02:42]} 7. O-O {[%clk 0:02:54]}  Nc6 {[%clk 0:02:37]} 8. c4 {[%clk 0:02:48]}  Nb6 {[%clk 0:02:37]} 9. exd6 {[%clk 0:02:45]}  cxd6 {[%clk 0:02:38]} 10. d5 {[%clk 0:02:38]}  exd5 {[%clk 0:02:38]} 11. cxd5 {[%clk 0:02:39]}  Ne5 {[%clk 0:02:38]} 12. Re1 {[%clk 0:02:25]}  Be7 {[%clk 0:02:37]} 13. Nxe5 {[%clk 0:02:14]}  dxe5 {[%clk 0:02:38]} 14. Rxe5 {[%clk 0:02:13]}  O-O {[%clk 0:02:38]} 15. Nc3 {[%clk 0:02:13]}  Bf6 {[%clk 0:02:37]} 16. Re1 {[%clk 0:01:53]}  Rc8 {[%clk 0:02:28]} 17. Ne4 {[%clk 0:01:22]}  Nxd5 {[%clk 0:02:18]} 18. Nxf6+ {[%clk 0:01:22]}  Nxf6 {[%clk 0:02:19]} 19. Qxd8 {[%clk 0:01:21]}  Rfxd8 {[%clk 0:02:19]} 20. Bg5 {[%clk 0:01:22]}  Rc2 {[%clk 0:02:16]} 21. Rab1 {[%clk 0:00:50]}  Rd5 {[%clk 0:02:03]} 22. Rbc1 {[%clk 0:00:29]}  Rxc1 {[%clk 0:01:51]} 23. Rxc1 {[%clk 0:00:30]}  h6 {[%clk 0:01:32]} 24. Be3 {[%clk 0:00:18]}  a6 {[%clk 0:01:29]} 25. f3 {[%clk 0:00:18]}  Rd3 {[%clk 0:01:19]} 26. Kf2 {[%clk 0:00:18]}  Nd5 {[%clk 0:01:18]} 27. Re1 {[%clk 0:00:13]}  b5 {[%clk 0:00:57]} 28. Re2 {[%clk 0:00:13]}  Nb4 {[%clk 0:00:50]} 29. a3 {[%clk 0:00:10]}  Nc6 {[%clk 0:00:51]} 30. Rc2 {[%clk 0:00:08]}  Ne5 {[%clk 0:00:50]} 31. Ke2 {[%clk 0:00:09]}  Rb3 {[%clk 0:00:50]} 32. Bc1 {[%clk 0:00:09]}  Nc4 {[%clk 0:00:49]} 33. h4 {[%clk 0:00:07]}  h5 {[%clk 0:00:46]} 34. a4 {[%clk 0:00:06]}  Rb4 {[%clk 0:00:42]} 35. axb5 {[%clk 0:00:07]}  axb5 {[%clk 0:00:43]} 36. g3 {[%clk 0:00:06]}  f6 {[%clk 0:00:43]} 37. g4 {[%clk 0:00:06]}  hxg4 {[%clk 0:00:42]} 38. fxg4 {[%clk 0:00:07]}  Ne5 {[%clk 0:00:39]} 39. g5 {[%clk 0:00:08]}  Rxh4 {[%clk 0:00:38]} 40. Rc8+ {[%clk 0:00:08]}  Kf7 {[%clk 0:00:37]} 41. gxf6 {[%clk 0:00:09]}  gxf6 {[%clk 0:00:37]} 42. Bf4 {[%clk 0:00:09]}  Rxf4 {[%clk 0:00:36]} 0-1

[Event "January 9 Early 2024"]
[Site "https://www.chess.com"]
[Date "2024.01.11"]
[Round "1"]
[White "Hoffmann, Asa"]
[Black "Skvortsov, Andrei"]
[Result "1/2-1/2"]
[Board "174"]
[TimeControl "180+1"]
[WhiteFideId "2001470"]
[BlackFideId "24108600"]
[WhiteElo "2356"]
[BlackElo "2667"]
[WhiteTeam "USA"]
[BlackTeam "MNE"]
[WhiteClock "0:00:04"]
[BlackClock "0:01:16"]

1. d4 {[%clk 0:02:57]}  g6 {[%clk 0:02:59]} 2. e4 {[%clk 0:02:54]}  Bg7 {[%clk 0:02:59]} 3. Be3 {[%clk 0:02:54]}  d5 {[%clk 0:02:56]} 4. Nd2 {[%clk 0:02:52]}  Nc6 {[%clk 0:02:53]} 5. c3 {[%clk 0:02:52]}  dxe4 {[%clk 0:02:53]} 6. Nxe4 {[%clk 0:02:52]}  Nf6 {[%clk 0:02:52]} 7. Ng3 {[%clk 0:02:49]}  e5 {[%clk 0:02:48]} 8. dxe5 {[%clk 0:02:45]}  Qxd1+ {[%clk 0:02:46]} 9. Rxd1 {[%clk 0:02:44]}  Nxe5 {[%clk 0:02:45]} 10. Bf4 {[%clk 0:02:35]}  Nfd7 {[%clk 0:02:40]} 11. Nf3 {[%clk 0:02:31]}  Nxf3+ {[%clk 0:02:37]} 12. gxf3 {[%clk 0:02:30]}  c6 {[%clk 0:02:38]} 13. Bh3 {[%clk 0:02:23]}  Nc5 {[%clk 0:02:33]} 14. Bxc8 {[%clk 0:02:17]}  Rxc8 {[%clk 0:02:34]} 15. Bd6 {[%clk 0:02:13]}  Ne6 {[%clk 0:02:25]} 16. O-O {[%clk 0:02:12]}  f5 {[%clk 0:02:24]} 17. Rfe1 {[%clk 0:02:05]}  Kf7 {[%clk 0:02:24]} 18. Ne2 {[%clk 0:01:52]}  Rhd8 {[%clk 0:02:18]} 19. Bg3 {[%clk 0:01:46]}  Rxd1 {[%clk 0:02:18]} 20. Rxd1 {[%clk 0:01:45]}  Rd8 {[%clk 0:02:18]} 21. Rxd8 {[%clk 0:01:44]}  Nxd8 {[%clk 0:02:18]} 22. f4 {[%clk 0:01:37]}  Ke6 {[%clk 0:02:18]} 23. f3 {[%clk 0:01:36]}  Kd5 {[%clk 0:02:18]} 24. Bf2 {[%clk 0:01:35]}  c5 {[%clk 0:02:14]} 25. Kf1 {[%clk 0:01:35]}  Nc6 {[%clk 0:02:13]} 26. Ke1 {[%clk 0:01:34]}  c4 {[%clk 0:02:14]} 27. Kd2 {[%clk 0:01:31]}  b5 {[%clk 0:02:14]} 28. a3 {[%clk 0:01:30]}  a6 {[%clk 0:02:12]} 29. Kc2 {[%clk 0:01:22]}  Bf6 {[%clk 0:02:07]} 30. Kd2 {[%clk 0:01:21]}  Be7 {[%clk 0:02:06]} 31. Be3 {[%clk 0:01:15]}  Bd6 {[%clk 0:02:06]} 32. h4 {[%clk 0:01:10]}  Be7 {[%clk 0:02:04]} 33. h5 {[%clk 0:01:05]}  gxh5 {[%clk 0:02:04]} 34. Ng3 {[%clk 0:01:05]}  h4 {[%clk 0:02:01]} 35. Nxf5 {[%clk 0:01:04]}  h3 {[%clk 0:02:02]} 36. Bg1 {[%clk 0:00:59]}  Bf6 {[%clk 0:01:59]} 37. Ke3 {[%clk 0:00:51]}  a5 {[%clk 0:01:58]} 38. Kf2 {[%clk 0:00:47]}  Ne7 {[%clk 0:01:56]} 39. Ne3+ {[%clk 0:00:39]}  Kc6 {[%clk 0:01:52]} 40. Kg3 {[%clk 0:00:38]}  Nd5 {[%clk 0:01:52]} 41. Ng4 {[%clk 0:00:32]}  Bg7 {[%clk 0:01:50]} 42. f5 {[%clk 0:00:32]}  h5 {[%clk 0:01:50]} 43. Nf2 {[%clk 0:00:28]}  b4 {[%clk 0:01:51]} 44. axb4 {[%clk 0:00:28]}  axb4 {[%clk 0:01:51]} 45. cxb4 {[%clk 0:00:21]}  Bxb2 {[%clk 0:01:49]} 46. Kxh3 {[%clk 0:00:18]}  Bd4 {[%clk 0:01:48]} 47. Kg2 {[%clk 0:00:14]}  Nxb4 {[%clk 0:01:44]} 48. Ne4 {[%clk 0:00:11]}  Bxg1 {[%clk 0:01:36]} 49. Kxg1 {[%clk 0:00:11]}  Nd3 {[%clk 0:01:31]} 50. f6 {[%clk 0:00:11]}  Ne5 {[%clk 0:01:32]} 51. Kf2 {[%clk 0:00:11]}  h4 {[%clk 0:01:27]} 52. Ke3 {[%clk 0:00:10]}  Kd5 {[%clk 0:01:25]} 53. f4 {[%clk 0:00:09]}  Ng6 {[%clk 0:01:19]} 54. Ng5 {[%clk 0:00:07]}  Nf8 {[%clk 0:01:15]} 55. Kd2 {[%clk 0:00:03]}  Kd4 {[%clk 0:01:14]} 56. Nf3+ {[%clk 0:00:03]}  Ke4 {[%clk 0:01:14]} 57. Nxh4 {[%clk 0:00:03]}  Kxf4 {[%clk 0:01:15]} 58. Kc3 {[%clk 0:00:03]}  Kg5 {[%clk 0:01:15]} 59. Kxc4 {[%clk 0:00:04]}  Kxf6 {[%clk 0:01:16]} 1/2-1/2

[Event "January 9 Early 2024"]
[Site "https://www.chess.com"]
[Date "2024.01.11"]
[Round "1"]
[White "Recuero Guerra, Javier"]
[Black "Yagupov, Igor"]
[Result "0-1"]
[Board "175"]
[TimeControl "180+1"]
[WhiteFideId "2254085"]
[BlackFideId "4113632"]
[WhiteElo "2294"]
[BlackElo "2642"]
[WhiteTeam "ESP"]
[BlackTeam "RUS"]
[WhiteClock "0:00:02"]
[BlackClock "0:00:17"]

1. e4 {[%clk 0:03:00]}  c5 {[%clk 0:02:57]} 2. c3 {[%clk 0:02:58]}  Nf6 {[%clk 0:02:56]} 3. e5 {[%clk 0:02:55]}  Nd5 {[%clk 0:02:57]} 4. Bc4 {[%clk 0:02:55]}  e6 {[%clk 0:02:56]} 5. d4 {[%clk 0:02:52]}  cxd4 {[%clk 0:02:55]} 6. cxd4 {[%clk 0:02:52]}  d6 {[%clk 0:02:54]} 7. Nf3 {[%clk 0:02:50]}  Nc6 {[%clk 0:02:55]} 8. O-O {[%clk 0:02:42]}  Be7 {[%clk 0:02:55]} 9. Re1 {[%clk 0:02:33]}  O-O {[%clk 0:02:53]} 10. Bxd5 {[%clk 0:02:22]}  exd5 {[%clk 0:02:52]} 11. Nc3 {[%clk 0:02:22]}  Be6 {[%clk 0:02:33]} 12. Bf4 {[%clk 0:02:17]}  dxe5 {[%clk 0:02:32]} 13. Nxe5 {[%clk 0:02:16]}  Rc8 {[%clk 0:02:24]} 14. Qa4 {[%clk 0:01:54]}  a6 {[%clk 0:02:20]} 15. Rac1 {[%clk 0:01:50]}  Qb6 {[%clk 0:01:47]} 16. Nxc6 {[%clk 0:01:42]}  Rxc6 {[%clk 0:01:44]} 17. Re2 {[%clk 0:01:36]}  Bf6 {[%clk 0:01:16]} 18. Rd2 {[%clk 0:01:29]}  Rc4 {[%clk 0:01:13]} 19. Qd1 {[%clk 0:01:15]}  Rxd4 {[%clk 0:00:56]} 20. Rxd4 {[%clk 0:01:01]}  Qxd4 {[%clk 0:00:56]} 21. Qxd4 {[%clk 0:00:56]}  Bxd4 {[%clk 0:00:57]} 22. Rd1 {[%clk 0:00:56]}  Bf6 {[%clk 0:00:46]} 23. Nxd5 {[%clk 0:00:48]}  Bxb2 {[%clk 0:00:42]} 24. Bd6 {[%clk 0:00:24]}  Rd8 {[%clk 0:00:36]} 25. Ne3 {[%clk 0:00:14]}  Bxa2 {[%clk 0:00:27]} 26. Rd2 {[%clk 0:00:13]}  Bf6 {[%clk 0:00:24]} 27. Nf5 {[%clk 0:00:07]}  Be6 {[%clk 0:00:22]} 28. Ne3 {[%clk 0:00:05]}  h5 {[%clk 0:00:20]} 29. h3 {[%clk 0:00:04]}  b5 {[%clk 0:00:19]} 30. Kf1 {[%clk 0:00:02]}  a5 {[%clk 0:00:17]} 0-1

[Event "January 9 Early 2024"]
[Site "https://www.chess.com"]
[Date "2024.01.11"]
[Round "1"]
[White "Svane, Frederik"]
[Black "Caetano, Hugo Zanotti Mendonca"]
[Result "1-0"]
[Board "176"]
[TimeControl "180+1"]
[WhiteFideId "12923044"]
[BlackFideId "2119420"]
[WhiteElo "3000"]
[BlackElo "2514"]
[WhiteTeam "GER"]
[BlackTeam "BRA"]
[WhiteClock "0:00:31"]
[BlackClock "0:00:05"]

1. e4 {[%clk 0:03:00]}  c5 {[%clk 0:02:58]} 2. Nf3 {[%clk 0:03:00]}  Nc6 {[%clk 0:02:58]} 3. Bb5 {[%clk 0:03:00]}  e6 {[%clk 0:02:58]} 4. O-O {[%clk 0:03:00]}  Nge7 {[%clk 0:02:58]} 5. Re1 {[%clk 0:02:58]}  a6 {[%clk 0:02:58]} 6. Bf1 {[%clk 0:02:58]}  d5 {[%clk 0:02:57]} 7. d3 {[%clk 0:02:57]}  dxe4 {[%clk 0:02:57]} 8. dxe4 {[%clk 0:02:58]}  Qxd1 {[%clk 0:02:57]} 9. Rxd1 {[%clk 0:02:59]}  Ng6 {[%clk 0:02:56]} 10. a4 {[%clk 0:02:56]}  Be7 {[%clk 0:02:56]} 11. Na3 {[%clk 0:02:43]}  O-O {[%clk 0:02:50]} 12. Nc4 {[%clk 0:02:39]}  Rb8 {[%clk 0:02:36]} 13. a5 {[%clk 0:02:38]}  Rd8 {[%clk 0:02:28]} 14. Rxd8+ {[%clk 0:02:32]}  Bxd8 {[%clk 0:02:29]} 15. Be3 {[%clk 0:02:32]}  Be7 {[%clk 0:02:26]} 16. Nfd2 {[%clk 0:02:15]}  f5 {[%clk 0:02:10]} 17. Nb3 {[%clk 0:01:57]}  fxe4 {[%clk 0:01:25]} 18. Nxc5 {[%clk 0:01:54]}  e5 {[%clk 0:01:15]} 19. Nxe4 {[%clk 0:01:54]}  Be6 {[%clk 0:01:14]} 20. c3 {[%clk 0:01:49]}  Rd8 {[%clk 0:01:01]} 21. g3 {[%clk 0:01:34]}  Nf8 {[%clk 0:00:50]} 22. Nc5 {[%clk 0:01:30]}  Bxc5 {[%clk 0:00:45]} 23. Bxc5 {[%clk 0:01:30]}  Nd7 {[%clk 0:00:46]} 24. Be3 {[%clk 0:01:28]}  Nf6 {[%clk 0:00:46]} 25. Bb6 {[%clk 0:01:18]}  Rd7 {[%clk 0:00:43]} 26. Re1 {[%clk 0:01:17]}  e4 {[%clk 0:00:41]} 27. Bc5 {[%clk 0:01:08]}  h6 {[%clk 0:00:17]} 28. b4 {[%clk 0:01:05]}  Kh7 {[%clk 0:00:16]} 29. Kg2 {[%clk 0:00:58]}  Bxc4 {[%clk 0:00:13]} 30. Bxc4 {[%clk 0:00:58]}  Ne5 {[%clk 0:00:14]} 31. Be6 {[%clk 0:00:55]}  Rd3 {[%clk 0:00:12]} 32. Bf5+ {[%clk 0:00:46]}  Kg8 {[%clk 0:00:09]} 33. Bxe4 {[%clk 0:00:46]}  Rxc3 {[%clk 0:00:07]} 34. Bxb7 {[%clk 0:00:37]}  Nd3 {[%clk 0:00:06]} 35. Re3 {[%clk 0:00:37]}  Rxc5 {[%clk 0:00:03]} 36. bxc5 {[%clk 0:00:34]}  Nxc5 {[%clk 0:00:04]} 37. Bf3 {[%clk 0:00:34]}  Kf7 {[%clk 0:00:04]} 38. Rc3 {[%clk 0:00:31]}  Nfd7 {[%clk 0:00:04]} 39. Bc6 {[%clk 0:00:31]}  Ke7 {[%clk 0:00:05]} 40. Bxd7 {[%clk 0:00:31]}  Nxd7 {[%clk 0:00:05]} 41. Rc6 {[%clk 0:00:31]} 1-0